Cogmind - Beta 16 @@@ ROGUE MODE // 2026.01.18 @ 09:25:32 Player: Biasface Result: Self-destructed Performance ------------- Evolutions (0) 0 Regions Visited (4) 800 Robots Destroyed (27) 135 Value Destroyed (682) 682 Prototype IDs (26) 520 Alien Tech Used (0) 0 Bonus (350) 350 TOTAL SCORE: 2487 Bonus ------- Follower Combat Kills 50 Aligned with FarCom 300 Cogmind --------- Core Integrity 92/250 Matter 300/300 Energy 125/125 System Corruption 2% Temperature Cool (0) Movement Walking (120) Location -9/Mines Parts ------- > --- POWER (1) -------- Light Ion Engine > --- PROPULSION (2) --- Carbon-fiber Leg Carbon-fiber Leg > --- UTILITY (2) ------ Small Storage Unit Transport Network Coupler > --- WEAPON (2) ------- Beam Rifle Beam Cannon > --- INVENTORY (8) ---- Improved Heat Sink Terrain Scan Processor Melee Analysis Suite Skeleton Box Grenade Launcher Peak State ------------ > --- POWER ------------ Light Ion Engine > --- PROPULSION ------- Carbon-fiber Leg Carbon-fiber Leg > --- UTILITY ---------- Small Storage Unit Transport Network Coupler > --- WEAPON ----------- Beam Rifle Beam Cannon > --- INVENTORY -------- Improved Heat Sink Terrain Scan Processor Melee Analysis Suite Skeleton Box Grenade Launcher [Rating: 13] Favorites ----------- Power Light Ion Engine Engine Light Ion Engine Propulsion Aluminum Leg Leg Aluminum Leg Utility Small Storage Unit Device Sensor Array Storage Small Storage Unit Processor Transport Network Coupler Weapon Beam Cannon Energy Gun Beam Rifle Energy Cannon Beam Cannon Ballistic Gun Assault Rifle Build | -11 -10 -10 -10 -9 ------- Run | Yrd Mat Min Exi Min Slots Evolved . | . . . . . Power . | . . . . . Propulsion . | . . . . . Utility . | . . . . . Weapon . | . . . . . Parts Attached 28 | 9 14 3 . 2 Power 5 | 2 2 1 . . Engine 5 | 2 2 1 . . Core . | . . . . . Reactor . | . . . . . Propulsion 10 | 2 4 2 . 2 Treads . | . . . . . Leg 10 | 2 4 2 . 2 Wheel . | . . . . . Hover . | . . . . . Flight . | . . . . . Utility 6 | 2 4 . . . Device 3 | 1 2 . . . Storage 2 | 1 1 . . . Processor 1 | . 1 . . . Hackware . | . . . . . Protection . | . . . . . Artifact . | . . . . . Weapon 7 | 3 4 . . . Energy Gun 3 | 1 2 . . . Energy Cannon 1 | . 1 . . . Ballistic Gun 3 | 2 1 . . . Ballistic Cannon . | . . . . . Launcher . | . . . . . Special Weapon . | . . . . . Impact Weapon . | . . . . . Slashing Weapon . | . . . . . Piercing Weapon . | . . . . . Special Melee Weapon . | . . . . . Unidentified Prototypes . | . . . . . Parts Lost 4 | . 1 1 . 2 Power 2 | . . 1 . 1 Propulsion . | . . . . . Utility 1 | . 1 . . . Weapon 1 | . . . . 1 Highest Loss Streak 2 | . 1 1 . 2 To Critical Strikes . | . . . . . Average Backups 6 | 3 7 7 6 5 Power 1 | . 1 1 1 . Propulsion 1 | 1 2 1 . . Utility 1 | . 1 2 2 2 Weapon 1 | . 1 2 2 1 Tool/Special . | . . . . . Unused Backups 10 | . 3 . 2 5 Power . | . . . . . Propulsion 2 | . 2 . . . Utility 4 | . . . 1 3 Weapon 3 | . 1 . 1 1 Tool/Special 1 | . . . . 1 Average Slot Usage (%) 99 | . 99 99 100 99 Engine 13 | . 14 13 14 14 Leg 27 | . 28 28 28 27 Device 5 | . 13 . . . Storage 14 | . 14 14 14 14 Processor 8 | . . 14 14 14 Energy Gun 8 | . 15 . . 13 Energy Cannon 10 | . 6 14 14 13 Ballistic Gun 8 | . 6 14 14 . Peak Build Rating 13 | 7 10 8 10 13 Average Rating 8 | 5 8 7 8 12 On Entrance 6 | . 7 7 8 8 Avg Prop Armor Cover (%) . | . . . . . Naked Turns . | . . . . . Heaviest Build 22 | 14 22 15 13 14 Greatest Support 30 | 20 20 20 20 30 Greatest Overweight (x) 1 | . 1 . . . Average Overweight (x) . | . . . . . Largest Inventory Capacity 10 | 8 10 8 8 8 Average Capacity 7 | 7 8 8 8 8 Most Carried 8 | 4 8 8 8 6 Average Carried 6 | 3 7 7 6 5 Final Capacity 8 | 8 8 8 8 8 Final Carried 7 | 4 7 7 6 5 Class Distribution -------------------- 53% | Mutant 46% | Scavenger-Mutant Dominant Class ---------------- Mutant | -10/Materials Scavenger-Mutant | -10/Mines Scavenger-Mutant | -10/Exiles Scavenger-Mutant | -9/Mines Resources | -11 -10 -10 -10 -9 ----------- Run | Yrd Mat Min Exi Min Matter Collected 813 | 204 393 99 . 117 Remotely . | . . . . . Salvage Created 893 | 17 648 130 . 98 Parts 57 | 2 39 13 . 3 Haulers Intercepted 2 | . 2 . . . Recyclers Shooed . | . . . . . Parts Field Recycled . | . . . . . Retrieved Matter . | . . . . . Parts Self-Destructed . | . . . . . Prevented . | . . . . . Parts Restored . | . . . . . Kills | -11 -10 -10 -10 -9 ------- Run | Yrd Mat Min Exi Min Combat Hostiles Destroyed 21 | . 14 5 . 2 Guns 15 | . 13 1 . 1 Cannons 6 | . 1 4 . 1 Classes Destroyed 6 | 1 4 . . 1 Tunneler 2 | 1 1 . . . Hauler 2 | . 2 . . . Watcher 2 | . 2 . . . Swarmer 6 | . 3 3 . . Grunt 14 | . 11 2 . 1 Duelist 1 | . . . . 1 Best Kill Streak 3 | 1 3 3 . 2 Combat Bots Only 3 | . 3 3 . 2 Max Kills in Single Turn 2 | 1 1 2 . 1 Gunslinging . | . . . . . Exploded . | . . . . . Melee . | . . . . . Uniques/NPCs Destroyed . | . . . . . Combat | -11 -10 -10 -10 -9 -------- Run | Yrd Mat Min Exi Min Hostile Shots Fired 118 | . 68 28 . 22 Missed 30 | . 19 6 . 5 Hits 88 | . 49 22 . 17 Melee 4 | . . . . 4 Projectile 84 | . 49 22 . 13 Critical Strikes 1 | . . . . 1 Damage Taken 1064 | . 543 254 . 267 Core 158 | . 72 69 . 17 Absorbed by Shields . | . . . . . Core Remaining (%) 100 | 100 . . . . Volleys Fired 85 | 4 54 15 . 12 Largest 2 | 2 2 2 . 2 Hottest 116 | 60 116 80 . 116 Shots Fired 169 | 8 107 30 1 23 Gun 139 | 8 101 15 . 15 Cannon 30 | . 6 15 1 8 Launcher . | . . . . . Special . | . . . . . Kinetic 68 | 4 40 15 . 9 Thermal 101 | 4 67 15 1 14 Explosive . | . . . . . Electromagnetic . | . . . . . Robot Hit Streak 16 | 8 16 4 . 4 Robot Miss Streak 3 | . 3 2 1 3 Penetration Max . | . . . . . Secondary Targets . | . . . . . Shots Hit Robots 103 | 8 66 15 . 14 Core Hits 43 | 1 30 7 . 5 Critical Kills . | . . . . . Critical Parts Destroyed 1 | . . 1 . . Critical Strikes 1 | . . 1 . . Destroy 1 | . . 1 . . Melee Attacks . | . . . . . Impact . | . . . . . Slashing . | . . . . . Piercing . | . . . . . Sneak Attacks . | . . . . . Combat Hostiles . | . . . . . Follow-up Attacks . | . . . . . Damage Inflicted 1431 | 92 861 273 . 205 Guns 1122 | 92 788 127 . 115 Cannons 309 | . 73 146 . 90 Explosions . | . . . . . Melee . | . . . . . Ramming . | . . . . . Kinetic 583 | 49 321 127 . 86 Thermal 848 | 43 540 146 . 119 Explosive . | . . . . . Electromagnetic . | . . . . . Impact . | . . . . . Slashing . | . . . . . Piercing . | . . . . . Highest Corruption 2 | . 2 2 2 2 Average Corruption 1 | . 1 2 2 2 Corruption Purged . | . . . . . Corruption Blocked . | . . . . . Effects 54 | . 23 11 11 9 Message Errors 17 | . 8 3 4 2 Matter Fused 14 | . 4 5 2 3 Heat Flow Errors 7 | . 4 1 1 1 Energy Discharges 3 | . 2 . . 1 Parts Rejected 1 | . 1 . . . Parts Fused 2 | . . . 2 . Data Loss (minor) 6 | . 2 2 1 1 Data Loss (major) 2 | . 1 . . 1 Misfires 1 | . . . 1 . Weapon Failures 1 | . 1 . . . Overload Shots . | . . . . . Overflow Damage . | . . . . . Projectiles . | . . . . . Explosions . | . . . . . Melee . | . . . . . Knockbacks . | . . . . . Impact . | . . . . . Kinetic . | . . . . . Secondary . | . . . . . Self-Inflicted Damage . | . . . . . Shots . | . . . . . Rammed . | . . . . . Targets Rammed . | . . . . . Kicked . | . . . . . Crushed . | . . . . . Highest Temperature 275 | . 248 275 144 147 Average Temperature 72 | . 60 98 61 82 Received Heat Transfer 435 | . 240 117 . 78 Effects 3 | . 1 2 . . Energy Bleed 1 | . 1 . . . Interference 2 | . . 2 . . Siege Activations . | . . . . . Martial Activations . | . . . . . Shielding Activations . | . . . . . Robots Disrupted . | . . . . . Combat Hostiles . | . . . . . Robots Corrupted . | . . . . . Combat Hostiles . | . . . . . Parts Fried . | . . . . . Impact Corruptions . | . . . . . Robots Melted . | . . . . . Combat Hostiles . | . . . . . Parts Melted 1 | . 1 . . . Heat Transferred 1860 | 100 1205 296 . 259 Parts Sabotaged . | . . . . . Parts Stolen . | . . . . . Parts Stripped . | . . . . . Power Chain Reactions . | . . . . . Alert | -11 -10 -10 -10 -9 ------- Run | Yrd Mat Min Exi Min Maximum Alert Level . | . . . . . Low Security (%) 100 | 100 100 100 . 100 Level 1 . | . . . . . Level 2 . | . . . . . Level 3 . | . . . . . Level 4 . | . . . . . Level 5 . | . . . . . High Security . | . . . . . Max Security . | . . . . . Peak Influence 112 | 5 99 112 . 40 Initial 16 | . . 16 . . Average 23 | . 30 31 . 2 Influence Increases 696 | 5 449 192 . 50 Destroy 0b10 Robot/C 460 | . 280 140 . 40 Destroy 0b10 Robot/NC 30 | 5 25 . . . Destroy Leader 108 | . 78 20 . 10 Allied During Kill 2 | . . 2 . . Successful Hack 36 | . 36 . . . Disable Machine 15 | . 15 . . . Lose Combat Pursuer 45 | . 15 30 . . Influence Decreases 696 | 5 407 234 . 50 Entered New Map 26 | . . 26 . . Time Decay 650 | 5 397 208 . 40 Lost Part 20 | . 10 . . 10 Squads Dispatched 5 | . 4 1 . . Investigation 1 | . 1 . . . Extermination . | . . . . . Reinforcement 3 | . 3 . . . Assault 1 | . . 1 . . Garrison . | . . . . . Intercept . | . . . . . Searches Triggered . | . . . . . Construction Impeded . | . . . . . Haulers Reinforced . | . . . . . Active Scanning Responses . | . . . . . Cargo Convoy Interrupts . | . . . . . Stealth | -11 -10 -10 -10 -9 --------- Run | Yrd Mat Min Exi Min Distress Signals 1 | . . . . 1 Communications Jammed . | . . . . . Distress Signals . | . . . . . Times Spotted 33 | . 23 8 . 2 Peak Tracking Total 4 | . 3 4 . 2 Tactical Retreats 2 | . 1 1 . . Traps | -11 -10 -10 -10 -9 ------- Run | Yrd Mat Min Exi Min Traps Triggered 3 | . 3 . . . Indirectly . | . . . . . Trap Hack Attempts . | . . . . . Triggered . | . . . . . Disarmed . | . . . . . Reprogrammed . | . . . . . Reused . | . . . . . Traps Extracted . | . . . . . Installed . | . . . . . Triggered . | . . . . . Machines | -11 -10 -10 -10 -9 ---------- Run | Yrd Mat Min Exi Min Machines Disabled 1 | . 1 . . . Max in Single Turn 1 | . 1 . . . Machines Repaired . | . . . . . Machines Dismantled . | . . . . . Machines Sabotaged . | . . . . . Overloaded Fab Kills . | . . . . . Hacking | -11 -10 -10 -10 -9 --------- Run | Yrd Mat Min Exi Min Machines Accessed 11 | . 6 . 5 . Terminals 5 | . 5 . . . Fabricators . | . . . . . Repair Stations . | . . . . . Recycling Units 1 | . 1 . . . Scanalyzers . | . . . . . Garrison Access . | . . . . . Total Hacks 72 | . 22 . 50 . Successful 63 | . 13 . 50 . Failed 9 | . 9 . . . Catastrophic 2 | . 2 . . . Database Lockouts . | . . . . . Manual 19 | . 18 . 1 . Terminals 19 | . 19 . . . Fabricators . | . . . . . Repair Stations . | . . . . . Recycling Units 3 | . 3 . . . Scanalyzers . | . . . . . Garrison Access . | . . . . . Terminal Hacks 56 | . 6 . 50 . Record 49 | . . . 49 . Robot Analysis 3 | . 3 . . . Prototype ID Bank 2 | . 2 . . . Hauler Manifests 1 | . 1 . . . Proto ID Catalog 1 | . . . 1 . Fabricator Hacks . | . . . . . Repair Station Hacks . | . . . . . Recycling Unit Hacks 2 | . 2 . . . Retrieve Matter 1 | . 1 . . . Retrieve Components 1 | . 1 . . . Scanalyzer . | . . . . . Garrison Access Hacks . | . . . . . Unauthorized Hacks 5 | . 5 . . . Terminals 5 | . 5 . . . Assimilate 1 | . 1 . . . Botnet 4 | . 4 . . . Fabricators . | . . . . . Repair Stations . | . . . . . Recycling Units . | . . . . . Scanalyzers . | . . . . . Garrison Access . | . . . . . Data Cores Recovered . | . . . . . Used . | . . . . . Hacking Detections 6 | . 6 . . . Full Trace Events . | . . . . . Feedback Events . | . . . . . Feedback Blocked . | . . . . . Robot Schematics Acquired . | . . . . . Robots Built . | . . . . . Authchips . | . . . . . Time . | . . . . . Total Robot Build Rating . | . . . . . Part Schematics Acquired . | . . . . . Parts Built . | . . . . . Authchips . | . . . . . Time . | . . . . . Total Part Build Rating . | . . . . . Part Studies Acquired . | . . . . . Parts Repaired . | . . . . . Time . | . . . . . Parts Recycled . | . . . . . Recycled Matter . | . . . . . Retrieved Matter . | . . . . . Retrieved Components 6 | . 6 . . . Parts Scanalyzed . | . . . . . Part Schematics Acquired . | . . . . . Parts Damaged . | . . . . . Bothacking | -11 -10 -10 -10 -9 ------------ Run | Yrd Mat Min Exi Min Used RIF Installer . | . . . . . Robots Hacked . | . . . . . Non-combat . | . . . . . Combat . | . . . . . Robot Hacks Applied . | . . . . . Relay Couplers Released . | . . . . . Fabnet Peak Effective % . | . . . . . Robots Rewired . | . . . . . Allies Hacked . | . . . . . Hacks Repelled . | . . . . . Allies | -11 -10 -10 -10 -9 -------- Run | Yrd Mat Min Exi Min Total Allies 1 | . . 1 . . Largest Group 1 | . . 1 1 1 Highest-Rated Group 31 | . . 31 31 31 Highest-Rated Ally 31 | . . 31 31 31 Total Orders . | . . . . . Ally Attacks 14 | . . 12 . 2 Total Damage 104 | . . 104 . . Kills 2 | . . 2 . . Allies Corrupted . | . . . . . Allies Melted . | . . . . . Intel | -11 -10 -10 -10 -9 ------- Run | Yrd Mat Min Exi Min Active Infowar (turns) 3487 | 31 1444 659 755 598 Sensors 1020 | . 1020 . . . Terrain 138 | . 138 . . . Seismic 286 | 31 255 . . . T.N.C. 2043 | . 31 659 755 598 Robot Analysis Total 3 | . 3 . . . Derelict Logs Recovered 1 | . . 1 . . Drone Launches . | . . . . . Drone Recoveries . | . . . . . Exploration | -11 -10 -10 -10 -9 ------------- Run | Yrd Mat Min Exi Min Turns Passed 3676 | 136 1510 677 755 598 Spaces Moved 2695 | 93 1021 493 626 462 Core 6 | 6 . . . . Treads . | . . . . . Legs 2689 | 87 1021 493 626 462 Wheels . | . . . . . Hover . | . . . . . Flight . | . . . . . Fastest Speed 50 | 50 120 120 120 120 Average Speed 119 | 115 120 120 120 120 Slowest Speed 190 | 120 190 120 120 120 Overloaded Moves . | . . . . . Propulsion Burnouts . | . . . . . Robots Hopped . | . . . . . Potential Cave-ins . | . . . . . Cave-ins Triggered . | . . . . . Exploration Rate (%) 69 | 5 98 83 93 66 Regions Visited 4 Branch Regions 3 Pre-discovered Areas 1 | . . . 1 . Known Exits Taken . | . . . . . Unknown Exits Taken 4 | 1 1 1 1 . Scrap Searched 2 | . . 1 . 1 Spaces Dug . | . . . . . Terrain Destroyed . | . . . . . Melee . | . . . . . Projectile . | . . . . . AOE . | . . . . . Terrain Rammed . | . . . . . Walls Destroyed . | . . . . . Machines Disabled . | . . . . . Actions | -11 -10 -10 -10 -9 --------- Run | Yrd Mat Min Exi Min Total 2970 | 109 1198 550 631 482 Wait 120 | 1 86 33 . . Move 2691 | 92 1020 492 625 462 Hop . | . . . . . Pick Up 16 | 3 8 2 2 1 Fast Attach 14 | 7 4 . . 3 Attach 4 | . 1 1 . 2 Detach . | . . . . . Swap 15 | 2 10 3 . . Drop 24 | . 15 4 3 2 Fire 85 | 4 54 15 . 12 Melee . | . . . . . Ram . | . . . . . Kick . | . . . . . Crush . | . . . . . Escape Stasis . | . . . . . Rewire 1 | . . . 1 . Trap . | . . . . . Miscellaneous . | . . . . . Route ------- -11/Scrapyard -10/Materials (discovered 5 exits: [*Mat x3] / [*Min x2]) -10/Mines (discovered 4 exits: [*Mat x2] / *Exi / [*Sub]) -10/Exiles (discovered 2 exits: [*Min x2]) -9/Mines History --------- Turn | Location | Event 7 | -11/Scrapyard | Discovered new exit (range 14) 137 | -11/Scrapyard | Entered Materials 317 | -10/Materials | Build established: Mutant 317 | -10/Materials | Discovered new exit (range 12) 623 | -10/Materials | Discovered new exit (range 5) 985 | -10/Materials | Discovered new exit (range 11) 1247 | -10/Materials | Discovered new exit (range 12) 1413 | -10/Materials | Discovered new exit (range 6) 1647 | -10/Materials | Entered Mines 1682 | -10/Mines | Learned Materials security intel 1683 | -10/Mines | Discovered new exit (range 7) 1715 | -10/Mines | Discovered new exit (range 12) 1959 | -10/Mines | Core integrity fell below 50% 1980 | -10/Mines | Met a Derelict testing a Signal Generator 2026 | -10/Mines | Discovered new exit (range 10) 2126 | -10/Mines | Deemed a non-threat by the Exiles lab entrance 2126 | -10/Mines | Discovered new exit (range 5) 2271 | -10/Mines | Build established: Scavenger-Mutant 2324 | -10/Mines | Entered Exiles 2324 | -10/Exiles | Accompanied by 1 ally 2353 | -10/Exiles | Discovered new exit (range 15) 2375 | -10/Exiles | Met 8R-AWN 2402 | -10/Exiles | Met EX-HEX 2475 | -10/Exiles | Met EX-DEC 2493 | -10/Exiles | Visited The Gauntlet 2660 | -10/Exiles | Learned location of Zion (-6) 2726 | -10/Exiles | Discovered new exit (range 14) 2807 | -10/Exiles | Met EX-BIN 2826 | -10/Exiles | Aligned with FarCom system 2827 | -10/Exiles | Given EX-Vault access code 2899 | -10/Exiles | Opened EX-Vault 2901 | -10/Exiles | Found Prototype Device 2905 | -10/Exiles | Identified Skeleton Box 2913 | -10/Exiles | Found AWS/Gauss 2936 | -10/Exiles | Warned to stay clear of 0b10 Research branches 3079 | -10/Exiles | Left Exiles lab with Skeleton Box 3079 | -10/Exiles | Entered Mines 3079 | -9/Mines | Accompanied by 1 ally 3086 | -9/Mines | Met a Derelict bent on vengeance 3240 | -9/Mines | Found a hidden stash of uninstalled traps 3339 | -9/Mines | Assembled infested the area 3677 | -9/Mines | Self-destructed Last Messages --------------- data lost. 03219_ System corrupted: Matter fused (-7). 03240_ A stash of uninstalled traps is collected here! 03250_ System corrupted: Component data lost. 03276_ System corrupted: Matter fused (-10). 03322_ System corrupted: Matter fused (-6). 03339_ ALERT: Infestation in the mines, dispatching Demolisher response squad. 03395_ Searching scrap... 03395_ Found Imp. Ion Engine. 03395_ Found Disposable Heat Sink. 03395_ Found Lgt. EM Pulse Cannon. 03395_ Found Lrg. Matter Pod. 03395_ Found 38 Matter. 03396_ Acquired 23 matter. 03580_ System corrupted: Heat flow error (+160). 03619_ LDGL: EEQZ9N2SL#AN1A& 03636_ LCXV1NPFTW6C=6,XKMLNE:S0T< RILK 03662_ T-07 Excavator is excavating. Map ----- +----------------------------------------------------+ | | | | | | | | | | | | | | | | | | | | | | | | | | | | | | | ????????????????????????????? | | ????????????????????????????? | | ????????????????????????????? | | ????????????????????????????? | | ???####?????????????????????? | | ??## ####??????????????????? | | ?## ###????????????????? | | ?# ##???????????????? | | ?# #??????????????## | | ?# ####??????????## | | ?# @ # ##?????????# | | ??# ## ## #????????## | | ??###### u #????##### | | ???????## ##????# | | ????????## #?????# | | ????????## ####??# | | ????????# ##?# ## | | ????????# ### ##### | | ????????# ## #???# | | ????????# ## #???? | | ????????## #???? | | ?????????## #???? | | ??????????##### #### ###???? | | ??????????????####??# #?????? | | ????????????????????# #?????? | | ????????????????????# #?????? | | ????????????????????# #?????? | | ????????????????????# ?????? | | ????????????????????###?????? | | ????????????????????????????? | | ????????????????????????????? | | ????????????????????????????? | | ????????????????????????????? | | ????????????????????????????? | | ????????????????????????????? | +----------------------------------------------------+ Best States ------------- Heat Dissipation 25 Energy Generation 10 Energy Capacity 250 Matter Stores 300 Matter Capacity 300 Sight Range 16 Robot Scan Range 14 Terrain Scan Range 14 Terrain Scan Density 10 Evasion (%) 55 Item Schematics ----------------- None Robot Schematics ------------------ None Fabricated ------------ Nothing Repaired ---------- Nothing Studied --------- None Alien Tech Used ----------------- None Achievements -------------- Sixth Sense Challenges ------------ None Game ------ Seed EncryptedPropulsionChip Manual? 0 Play Time 00:27:59 Cumulative 17.9 hours Start 2026.01.18 @ 08:15:02 End 2026.01.18 @ 09:25:32 Sessions 1 Manual Loads 0 Difficulty Rogue Special Mode None Game No. 30 Rogue 30 Adventurer 0 Explorer 0 Win Type - Total 1 Types 1/0/0/0/0/0/0/0/0/0 Lore% 16 Gallery% 19 Achievement% 15 Wizard Run 0 Options --------- Layout 1 ASCII 0 Keyboard 0 Movement Arrows Keybinds 0 Fullscreen 1 Font 24/Smallcaps Map View 50x35 Zoom Use 0% Tactical HUD 1 Map Filters NONE Filters NONE Steam 1 RUN: dee3d642-3013-421c-b0bc-5a85117fda1a